[Event "Austrian Women Bundesliga 2023-24"]
[Site "Austria"]
[Date "2024.04.14"]
[Round "9.9"]
[White "Hrescak, Ivana"]
[Black "Heinatz, Gundula"]
[Result "1/2-1/2"]
[ECO "D27"]
[WhiteElo "2090"]
[BlackElo "2116"]
[Annotator "NA RC"]
[PlyCount "89"]
[EventDate "2023.11.21"]
[EventType "team-tourn"]
[EventCountry "AUT"]
[SourceTitle "playchess.com"]
[Source "ChessBase"]
[SourceQuality "1"]
[TimeControl "40/5400+30:1800+30"]

1. d4 {[%emt 0:00:03]} d5 {[%emt 0:00:04]} 2. c4 {[%emt 0:00:03]} dxc4 {[%emt 0:00:04]} 3. Nf3 {[%emt 0:00:13]} a6 {[%emt 0:00:05]} 4. a4 {[%emt 0:02:49]} Nf6 {[%emt 0:01:20]} 5. e3 {[%emt 0:01:02]} e6 {[%emt 0:05:16]} 6. Bxc4 {[%emt 0:01:08]} c5 {[%emt 0:00:13]} 7. O-O {[%emt 0:04:19]} Nc6 {[%emt 0:00:58]} 8. Nc3 {[%emt 0:02:02]} cxd4 {[%emt 0:05:00]} 9. exd4 {[%emt 0:00:08]} Nb4 {[%emt 0:02:09]} 10. Ne5 {[%emt 0:06:28]} Be7 {[%emt 0:04:43]} 11. Re1 {[%emt 0:04:27]} O-O {[%emt 0:06:59]} 12. Bg5 {[%emt 0:02:38]} h6 {[%emt 0:07:03]} 13. Bh4 {[%emt 0:04:55]} Nc6 {[%emt 0:02:30]} 14. Nxc6 {[%emt 0:05:35]} bxc6 {[%emt 0:00:10]} 15. Re2 {[%emt 0:00:17]} a5 {[%emt 0:01:45]} 16. Rd2 {[%emt 0:02:12]} Ba6 {[%emt 0:01:09]} 17. Qe2 {[%emt 0:13:13]} Bxc4 {[%emt 0:01:44]} 18. Qxc4 {[%emt 0:02:02]} Qb6 {[%emt 0:05:27]} 19. Bxf6 {[%emt 0:06:08]} Bxf6 {[%emt 0:00:02]} 20. Ne4 {[%emt 0:00:09]} Be7 {[%emt 0:00:03]} 21. Rc1 {[%emt 0:01:52]} Qb4 {[%emt 0:05:08]} 22. Qxb4 {[%emt 0:14:11]} Bxb4 {[%emt 0:00:34]} 23. Rd3 {[%emt 0:00:27]} Rac8 {[%emt 0:01:10]} 24. Kf1 {[%emt 0:03:17]} Rfd8 {[%emt 0:01:07]} 25. Ke2 {[%emt 0:01:16]} Kf8 {[%emt 0:05:38]} 26. Nd2 {[%emt 0:04:31]} Rd5 {[%emt 0:00:47]} 27. Nf3 {[%emt 0:01:05]} f6 {[%emt 0:01:38]} 28. h4 {[%emt 0:05:43]} h5 {[%emt 0:00:06]} 29. g3 {[%emt 0:00:38]} Ke7 {[%emt 0:00:57]} 30. Nh2 {[%emt 0:03:39]} e5 {[%emt 0:03:32]} 31. dxe5 {[%emt 0:00:21]} Rxe5+ {[%emt 0:00:23]} 32. Re3 {[%emt 0:02:36]} Rxe3+ {[%emt 0:00:15]} 33. Kxe3 {[%emt 0:00:04]} c5 {[%emt 0:00:17]} 34. b3 {[%emt 0:04:01]} Ba3 {[%emt 0:01:30]} 35. Ra1 {[%emt 0:02:00]} Bb2 {[%emt 0:00:07]} 36. Rb1 {[%emt 0:00:04]} Bd4+ {[%emt 0:00:14]} 37. Ke2 {[%emt 0:00:13]} Kd6 {[%emt 0:00:51]} 38. Nf3 {[%emt 0:01:43]} Re8+ {[%emt 0:00:53]} 39. Kf1 {[%emt 0:00:05]} Bc3 {[%emt 0:01:23]} 40. Rd1+ {[%emt 0:01:51]} Kc6 {[%emt 0:00:16]} 41. Rc1 {[%emt 0:02:14]} Bb4 {[%emt 0:00:21]} 42. Nd4+ {[%emt 0:01:12]} Kb6 {[%emt 0:01:41]} 43. Nf5 {[%emt 0:02:55]} g6 {[%emt 0:00:20]} 44. Ne3 {[%emt 0:00:52]} Rd8 {[%emt 0:01:42]} 45. Nc4+ {[%emt 0:09:36]} 1/2-1/2

[Event "Austrian Women Bundesliga 2023-24"]
[Site "Austria"]
[Date "2024.04.14"]
[Round "9.10"]
[White "Rojickova, Monika"]
[Black "Vidic, Teja"]
[Result "1-0"]
[ECO "C70"]
[WhiteElo "2072"]
[BlackElo "2139"]
[Annotator "TA"]
[PlyCount "131"]
[EventDate "2023.11.21"]
[EventType "team-tourn"]
[EventCountry "AUT"]
[SourceTitle "playchess.com"]
[Source "ChessBase"]
[SourceQuality "1"]
[TimeControl "40/5400+30:1800+30"]

{[%evp 9,131,22,49,37,38,37,23,32,27,37,55,34,39,0,5,-40,-25,-33,-32,-41,-10,-40,0,-56,-25,-17,18,25,26,14,91,86,99,14,15,6,64,67,81,80,79,87,82,81,77,77,81,32,86,0,0,0,0,0,0,0,0,0,168,152,172,195,206,208,209,174,169,95,93,-212,100,104,100,102,102,100,95,56,54,51,51,51,51,51,51,50,121,121,129,129,94,37,161,134,270,241,228,167,172,128,114,90,90,90,90,90,1218,579,2452,2008,29966,29965,29977,29978,29977,29978,29977,29978,29988,29989,29989,29990,29990,29991]} 1. e4 {[%emt 0:00:04]} e5 {[%emt 0:00:06]} 2. Nf3 {[%emt 0:00:04]} Nc6 {[%emt 0:00:05]} 3. Bb5 {[%emt 0:00:21]} a6 {[%emt 0:00:08]} 4. Ba4 {[%emt 0:00:05]} Bc5 {[%emt 0:00:05]} 5. c3 {[%emt 0:03:51]} Nge7 {[%emt 0:00:07]} 6. d4 {[%emt 0:05:32]} exd4 {[%emt 0:00:06]} 7. cxd4 {[%emt 0:00:03]} Bb4+ {[%emt 0:00:07]} 8. Nc3 {[%emt 0:08:58] White has an edge.} d5 {[%emt 0:00:07]} 9. exd5 {[%emt 0:01:29]} Nxd5 {[%emt 0:00:54]} 10. O-O {[%emt 0:02:46]} O-O {[%emt 0:01:39]} 11. Qd3 {[%emt 0:08:22]} Nce7 {[%emt 0:04:22]} 12. Ng5 {[%emt 0:11:21][%csl Gg5][%cal Rd3h7]} Bf5 {[%emt 0:01:50]} 13. Qf3 {[%emt 0:00:20]} c6 {[%emt 0:07:04]} 14. Bb3 {[%emt 0:07:00]} Bg6 {[%emt 0:10:04]} 15. Rd1 {[%emt 0:03:25]} Ba5 {[%emt 0:17:30]} 16. Nce4 {[%emt 0:07:04]} ({White should play} 16. Nge4 $11) 16... Qc7 {[%emt 0:11:08]} 17. h4 {[%emt 0:08:28]} h5 {[%emt 0:06:02]} 18. Ng3 {[%emt 0:05:32]} Nf6 {[%emt 0:03:05]} 19. Nh3 {[%emt 0:16:08]} Rad8 {[%emt 0:10:37]} (19... Ned5 $11 {keeps the balance.}) 20. Bg5 $16 {[%emt 0:05:27]} Ned5 {[%emt 0:02:42]} 21. Bxf6 {[%emt 0:00:16]} (21. Bxd5 $16 Nxd5 22. Bxd8 (22. Nxh5 f6 $11) 22... Qxd8 23. Ng5 (23. Nxh5 Qxh4 24. N5f4 Nxf4 $16)) 21... Nxf6 $11 {[%emt 0:00:16]} 22. Nf4 {[%emt 0:00:08]} Nd5 {[%emt 0:02:56]} 23. Ngxh5 {[%emt 0:01:29]} Qd6 {[%emt 0:02:46]} 24. Nxd5 {[%emt 0:03:06]} cxd5 {[%emt 0:00:06]} 25. Ng3 {[%emt 0:00:17]} Bc7 {[%emt 0:00:50]} 26. Rac1 {[%emt 0:00:04][%cal Ob3d5]} Be4 {[%emt 0:01:34]} 27. Qh5 {[%emt 0:01:04]} Rfe8 {[%emt 0:01:04]} 28. Re1 {[%emt 0:00:19]} (28. Rc3 $16) 28... Re6 {[%emt 0:01:04] [#]} (28... Qf4 $1 $14) 29. Rxe4 {[%emt 0:00:56]} Rxe4 {[%emt 0:02:49]} 30. Nxe4 {[%emt 0:00:22]} Qh2+ {[%emt 0:00:58]} 31. Kf1 {[%emt 0:00:01][%cal Bg1f1,Bf1e2,Be2f3][%mdl 32]} Qh1+ {[%emt 0:00:06]} (31... dxe4 32. Qxf7+ Kh8 33. Qh5#) 32. Ke2 {[%emt 0:00:04]} Qxc1 {[%emt 0:00:06]} 33. Bxd5 $40 {[%emt 0:01:07][%mdl 128] Black needs to defend precisely.} Qxb2+ $2 {[%emt 0:01:22]} (33... Rf8 $11 {and Black is okay.}) 34. Kf3 $18 {[%emt 0:00:29]} Qa3+ {[%emt 0:09:21]} (34... Qxd4 35. Qxf7+ Kh8 36. Qh5#) 35. Bb3 {[%emt 0:00:15][%mdl 1024] White has strong compensation.} Qe7 {[%emt 0:00:04]} (35... Rxd4 36. Qxf7+ Kh8 37. Qh5#) 36. Ng5 {[%emt 0:01:05] Qh7+ would kill now.} Qf6+ {[%emt 0:00:06]} (36... Rxd4 37. Qh7+ Kf8 38. Qh8#) 37. Ke2 {[%emt 0:00:05][%cal Rb3f7]} Rd7 {[%emt 0:02:21][%cal Og7g6]} (37... Rxd4 $2 38. Bxf7+ (38. Nxf7 $2 Re4+ 39. Kf1 Qa1+ 40. Qd1 Qxd1+ 41. Bxd1 Ba5 $19) 38... Kf8 39. Nh7+ Ke7 40. Nxf6 $18) 38. Qh7+ {[%emt 0:00:18]} ({White should try} 38. Be6 $1 $18 {[%cal Re6d7]} Qh6 (38... Qxd4 $2 39. Bxf7+ Kf8 40. Ne6+ Ke7 41. Nxd4 $18) 39. Qxh6 (39. Nxf7 $2 Qxh5+ 40. f3 Rxf7 $19) (39. Bxf7+ Kh8 $16) 39... gxh6 40. Bxd7 hxg5 41. h5 (41. hxg5 Bf4 $18)) 38... Kf8 $16 {[%emt 0:00:04]} 39. Qh8+ {[%emt 0:00:20]} Ke7 {[%emt 0:00:05] [#]} 40. Nh7 $1 {[%emt 0:01:18] Dancing on a razor blade. White is more active.} Rd8 {[%emt 0:01:46] Dodges Qf8+} (40... Qxh4 41. Qf8#) 41. Qxd8+ {[%emt 0:30:50]} Bxd8 {[%emt 0:30:10]} 42. Nxf6 {[%emt 0:00:08]} Kxf6 {[%emt 0:00:03][%mdl 4096] Endgame. KB-KB} 43. g4 {[%emt 0:00:00]} Kg6 {[%emt 0:00:00]} 44. h5+ {[%emt 0:00:00]} Kg5 {[%emt 0:00:00]} 45. f3 {[%emt 0:00:00]} f5 {[%emt 0:00:00]} 46. Be6 {[%emt 0:00:00]} fxg4 {[%emt 0:00:00]} 47. fxg4 {[%emt 0:00:00]} b5 {[%emt 0:00:00]} (47... Kf4 $14) 48. Ke3 {[%emt 0:00:00]} b4 {[%emt 0:00:00]} 49. Ke4 {[%emt 0:00:00]} a5 {[%emt 0:00:00]} 50. Kd5 {[%emt 0:00:45]} (50. Bd7 $16) 50... Bb6 {[%emt 0:00:00]} (50... a4 $14) 51. Kc4 $18 {[%emt 0:01:40] aiming for Bf5.} Kf6 {[%emt 0:00:00]} (51... Kf4 $16 52. Bc8 Bd8) 52. Bf5 {[%emt 0:00:46]} Ba7 {[%emt 0:00:00]} 53. Bc8 {[%emt 0:01:13]} Bb6 {[%emt 0:00:00]} 54. d5 {[%emt 0:01:05]} Ke5 {[%emt 0:01:00]} 55. g5 {[%emt 0:01:04][%cal Bg4g5,Bg5g6][%mdl 32] Strongly threatening h6.} Be3 {[%emt 0:00:53]} 56. g6 {[%emt 0:00:08]} Bd2 {[%emt 0:03:00]} 57. Bd7 {[%emt 0:00:26]} Kf6 $2 {[%emt 0:03:04][%mdl 8192]} (57... b3 $16 58. axb3 (58. Kxb3 Kxd5 59. Kc2 Bh6 $14) 58... Kd6) 58. Ba4 {[%emt 0:00:32]} (58. d6 Ke5 $14) 58... Kg5 {[%emt 0:00:41] [#]} 59. Bd1 {[%emt 0:00:15] Hoping for d6.} a4 {[%emt 0:01:24]} 60. d6 $1 {[%emt 0:00:57] White mates.} (60. Bxa4 Kxh5 61. d6 Kxg6 $11) 60... b3 {[%emt 0:00:04]} 61. d7 {[%emt 0:00:52]} Ba5 {[%emt 0:00:05]} 62. axb3 {[%emt 0:00:48][%cal Ba2b3,Bb3b4,Bb4a5][%mdl 32]} (62. Kb5 Bd8 63. a3 (63. Kxa4 bxa2 64. Kb3 a1=Q 65. Be2 Bf6 66. Kb4 Qb2+ 67. Kc5 Qxe2 68. h6 Kxh6 69. Kb4 Qd3 70. d8=B Qd4+ 71. Kb3 Bxd8 72. Kc2 Bf6 73. Kb3 Qc5 74. Ka4 Qc4+ 75. Ka3 Qb5 76. Ka2 Qb2#) (63. axb3 $2 a3 $19) 63... b2 $14) 62... a3 {[%emt 0:00:05]} 63. b4 {[%emt 0:00:05]} a2 {[%emt 0:00:49]} 64. bxa5 {[%emt 0:00:04]} a1=Q {[%emt 0:00:22]} 65. d8=Q+ {[%emt 0:00:04]} ({And not} 65. d8=R Qc1+ (65... Qxa5 66. Rd5+ Kh6 67. Rxa5 $11) 66. Kb5 Qb1+ (66... Qb2+ 67. Kc4 $11) 67. Kc5 Qc1+ 68. Kb5 Qb2+ 69. Kc4 Qf6 70. Rd5+ Kh6 $11) 65... Kf5 {[%emt 0:00:31]} 66. Qd5+ {[%emt 0:00:08] Weighted Error Value: White=0.15 (very precise) /Black=0.36.  Loses game:     	---       	Black=2      Missed win:     	---       	Black=1      Mistake:       	White=6     	Black=6      Inaccurate:     	White=4     	Black=6      OK:         	White=17    	Black=18     Best:        	White=10    	Black=6      Strong:       	White=1     	---} 1-0

[Event "Austrian Women Bundesliga 2023-24"]
[Site "Austria"]
[Date "2024.04.14"]
[Round "9.11"]
[White "Kordzadze, Nino"]
[Black "Bruessow, Nina"]
[Result "1-0"]
[ECO "A46"]
[WhiteElo "1976"]
[BlackElo "1884"]
[Annotator "NA RC"]
[PlyCount "82"]
[EventDate "2023.11.21"]
[EventType "team-tourn"]
[EventCountry "AUT"]
[SourceTitle "playchess.com"]
[Source "ChessBase"]
[SourceQuality "1"]
[TimeControl "40/5400+30:1800+30"]

1. d4 {[%emt 0:00:02]} Nf6 {[%emt 0:00:06]} 2. Nf3 {[%emt 0:00:08]} e6 {[%emt 0:00:11]} 3. Bg5 {[%emt 0:00:09]} c5 {[%emt 0:00:46]} 4. e3 {[%emt 0:00:10]} Nc6 {[%emt 0:03:16]} 5. c3 {[%emt 0:16:22]} a6 {[%emt 0:01:15]} 6. e4 {[%emt 0:07:08]} h6 {[%emt 0:11:15]} 7. Bxf6 {[%emt 0:01:58]} Qxf6 {[%emt 0:00:24]} 8. d5 {[%emt 0:07:07]} exd5 {[%emt 0:03:19]} 9. exd5 {[%emt 0:00:22]} Ne5 {[%emt 0:00:31]} 10. Nxe5 {[%emt 0:03:30]} Qxe5+ {[%emt 0:00:08]} 11. Qe2 {[%emt 0:00:23]} Bd6 {[%emt 0:01:19]} 12. Nd2 {[%emt 0:01:19]} b5 {[%emt 0:02:16]} 13. O-O-O {[%emt 0:06:40]} O-O {[%emt 0:01:05]} 14. Qxe5 {[%emt 0:05:07]} Bxe5 {[%emt 0:00:03]} 15. g3 {[%emt 0:00:21]} f5 {[%emt 0:12:03]} 16. f4 {[%emt 0:04:05]} Bf6 {[%emt 0:00:24]} 17. Nb3 {[%emt 0:02:54]} d6 {[%emt 0:01:31]} 18. Na5 {[%emt 0:01:34]} Re8 {[%emt 0:01:19]} 19. a4 {[%emt 0:13:34]} Rb8 {[%emt 0:08:19]} 20. Bd3 {[%emt 0:01:43]} Bd7 {[%emt 0:07:16]} 21. axb5 {[%emt 0:07:44]} axb5 {[%emt 0:01:09]} 22. Kd2 {[%emt 0:00:38]} g6 {[%emt 0:16:04]} 23. g4 {[%emt 0:05:13]} fxg4 {[%emt 0:03:30]} 24. Bxg6 {[%emt 0:00:09]} Rf8 {[%emt 0:01:07]} 25. Rhg1 {[%emt 0:03:26]} Bg7 {[%emt 0:01:56]} 26. Nc6 {[%emt 0:03:01]} Rb6 {[%emt 0:08:24]} 27. Ne7+ {[%emt 0:00:10]} Kh8 {[%emt 0:00:01]} 28. Bh5 {[%emt 0:00:56]} Ra8 {[%emt 0:00:38]} 29. Bxg4 {[%emt 0:00:55]} Bxg4 {[%emt 0:00:28]} 30. Rxg4 {[%emt 0:00:03]} b4 {[%emt 0:00:32]} 31. Rdg1 {[%emt 0:01:46]} bxc3+ {[%emt 0:00:18]} 32. bxc3 {[%emt 0:00:03]} Bf6 {[%emt 0:01:30]} 33. Rg6 {[%emt 0:00:45]} Bxc3+ {[%emt 0:04:10]} 34. Kxc3 {[%emt 0:01:08]} Ra3+ {[%emt 0:00:28]} 35. Kc2 {[%emt 0:01:19]} Ra2+ {[%emt 0:00:07]} 36. Kd3 {[%emt 0:04:16]} Rb3+ {[%emt 0:00:11]} 37. Ke4 {[%emt 0:00:14]} Re2+ {[%emt 0:00:09]} 38. Kf5 {[%emt 0:00:07]} Rxe7 {[%emt 0:00:14]} 39. Rxh6+ {[%emt 0:01:15]} Rh7 {[%emt 0:00:02]} 40. Rxh7+ {[%emt 0:01:43]} Kxh7 {[%emt 0:00:02]} 41. Ke6 {[%emt 0:30:20]} c4 {[%emt 0:30:46]} 1-0

[Event "Austrian Women Bundesliga 2023-24"]
[Site "Austria"]
[Date "2024.04.14"]
[Round "9.12"]
[White "Wielander, Magdalena"]
[Black "Molnar, Monika"]
[Result "1/2-1/2"]
[ECO "B01"]
[WhiteElo "1622"]
[BlackElo "1845"]
[Annotator "NA RC"]
[PlyCount "62"]
[EventDate "2023.11.21"]
[EventType "team-tourn"]
[EventCountry "AUT"]
[SourceTitle "playchess.com"]
[Source "ChessBase"]
[SourceQuality "1"]
[TimeControl "40/5400+30:1800+30"]

1. e4 {[%emt 0:00:03]} d5 {[%emt 0:00:26]} 2. exd5 {[%emt 0:00:11]} Qxd5 {[%emt 0:00:04]} 3. Nc3 {[%emt 0:00:13]} Qa5 {[%emt 0:00:06]} 4. d4 {[%emt 0:00:27]} Nf6 {[%emt 0:00:12]} 5. Bd2 {[%emt 0:02:24]} c6 {[%emt 0:00:42]} 6. Nf3 {[%emt 0:01:08]} Bf5 {[%emt 0:00:38]} 7. Bc4 {[%emt 0:15:43]} e6 {[%emt 0:01:10]} 8. Nh4 {[%emt 0:02:00]} Bg6 {[%emt 0:03:44]} 9. Nxg6 {[%emt 0:02:33]} hxg6 {[%emt 0:00:03]} 10. a3 {[%emt 0:02:56]} Qc7 {[%emt 0:00:38]} 11. g3 {[%emt 0:01:37]} Bd6 {[%emt 0:00:47]} 12. Qf3 {[%emt 0:00:21]} Nbd7 {[%emt 0:00:47]} 13. O-O-O {[%emt 0:02:07]} O-O-O {[%emt 0:03:59]} 14. Ne2 {[%emt 0:04:03]} Nb6 {[%emt 0:04:18]} 15. Ba5 {[%emt 0:00:23]} Nfd5 {[%emt 0:04:04]} 16. Ba2 {[%emt 0:09:37]} c5 {[%emt 0:09:38]} 17. c4 {[%emt 0:12:08]} Nf6 {[%emt 0:09:58]} 18. Nc3 {[%emt 0:03:35]} Kb8 {[%emt 0:06:01]} 19. Nb5 {[%emt 0:00:53]} Qc6 {[%emt 0:03:31]} 20. Qxc6 {[%emt 0:00:54]} bxc6 {[%emt 0:00:13]} 21. Nxd6 {[%emt 0:00:58]} Rxd6 {[%emt 0:01:03]} 22. Bxb6 {[%emt 0:06:12]} axb6 {[%emt 0:00:20]} 23. dxc5 {[%emt 0:00:16]} Rxd1+ {[%emt 0:00:41]} 24. Rxd1 {[%emt 0:00:06]} bxc5 {[%emt 0:01:20]} 25. h4 {[%emt 0:00:49]} Kc7 {[%emt 0:01:34]} 26. f3 {[%emt 0:02:29]} Rb8 {[%emt 0:02:23]} 27. Rd3 {[%emt 0:00:35]} Nd7 {[%emt 0:01:17]} 28. f4 {[%emt 0:01:25]} Nf6 {[%emt 0:00:21]} 29. Bb1 {[%emt 0:02:56]} Ne4 {[%emt 0:03:41]} 30. Re3 {[%emt 0:00:30]} Nd6 {[%emt 0:00:13]} 31. b3 {[%emt 0:04:32]} Ra8 {[%emt 0:00:50]} 1/2-1/2

[Event "Austrian Women Bundesliga 2023-24"]
[Site "Austria"]
[Date "2024.04.14"]
[Round "9.13"]
[White "Danielian, Elina"]
[Black "Polterauer, Chiara"]
[Result "1-0"]
[ECO "A34"]
[WhiteElo "2397"]
[BlackElo "2194"]
[Annotator "TA"]
[PlyCount "93"]
[EventDate "2023.11.21"]
[EventType "team-tourn"]
[EventCountry "AUT"]
[SourceTitle "playchess.com"]
[Source "ChessBase"]
[SourceQuality "1"]
[TimeControl "40/5400+30:1800+30"]

{[%evp 21,93,29,27,0,0,0,0,10,0,0,6,-22,-21,-22,0,-13,-15,-14,-22,-14,-13,-10,0,0,-20,-41,0,0,10,18,20,14,20,20,15,4,30,32,32,29,2,0,88,81,104,75,233,228,247,237,230,239,421,444,437,431,381,387,381,390,387,361,416,407,626,623,924,633,29975,29975,29991,29992,29996,29997]} 1. Nf3 {[%emt 0:00:03]} Nf6 {[%emt 0:00:06]} 2. c4 {[%emt 0:00:05]} c5 {[%emt 0:00:04]} 3. g3 {[%emt 0:05:30]} Nc6 {[%emt 0:00:43]} 4. Bg2 {[%emt 0:01:39]} d5 {[%emt 0:01:02]} 5. cxd5 {[%emt 0:00:06]} Nxd5 {[%emt 0:00:05]} 6. O-O {[%emt 0:00:16]} e5 {[%emt 0:01:00]} 7. Nc3 {[%emt 0:00:05]} Nc7 {[%emt 0:00:11]} 8. d3 {[%emt 0:02:48]} Be7 {[%emt 0:00:27]} 9. Nd2 {[%emt 0:00:04]} O-O {[%emt 0:02:31]} 10. Bxc6 {[%emt 0:00:23]} bxc6 {[%emt 0:00:05]} 11. Nc4 {[%emt 0:00:12]} f6 {[%emt 0:04:13]} 12. Qa4 {[%emt 0:03:15]} Bh3 {[%emt 0:04:06]} 13. Rd1 {[%emt 0:01:29]} Qd7 {[%emt 0:01:11]} 14. f3 {[%emt 0:12:33] The position is equal.} Nb5 {[%emt 0:06:47]} 15. Be3 {[%emt 0:02:07]} Rab8 {[%emt 0:07:33]} 16. Bf2 {[%emt 0:01:39]} Nd4 {[%emt 0:00:55]} 17. Rd2 {[%emt 0:01:02]} Rfd8 {[%emt 0:05:24]} 18. Qd1 {[%emt 0:00:43]} Be6 {[%emt 0:02:32] ...Bxc4 would now be deadly.} 19. b3 {[%emt 0:04:57]} Bxc4 {[%emt 0:04:31]} 20. bxc4 {[%emt 0:00:06]} Rb4 {[%emt 0:00:07]} 21. Kg2 {[%emt 0:03:37]} Rdb8 {[%emt 0:06:55]} 22. e3 {[%emt 0:09:11]} Ne6 {[%emt 0:01:06]} 23. a3 {[%emt 0:12:05]} Rb3 {[%emt 0:01:51]} 24. Nb5 {[%emt 0:06:31]} R3xb5 {[%emt 0:03:52]} 25. cxb5 {[%emt 0:00:04]} cxb5 {[%emt 0:00:04]} 26. a4 {[%emt 0:00:52] axb5 is the strong threat.} b4 {[%emt 0:02:02]} 27. Qb3 {[%emt 0:00:27]} Kf8 {[%emt 0:01:14]} 28. h4 {[%emt 0:09:15] Repels Ng5} f5 {[%emt 0:01:17]} 29. Rc1 {[%emt 0:00:13][%cal Od3d4]} (29. Qc4 {simplifies} Rd8 30. Re1 Qd5 31. Qxd5 Rxd5 32. e4) 29... g5 {[%emt 0:07:42]} 30. hxg5 {[%emt 0:11:23]} Nxg5 {[%emt 0:05:33]} 31. Rdd1 {[%emt 0:08:57]} f4 {[%emt 0:00:58]} 32. Rh1 $16 {[%emt 0:01:45] Chess con chili.} (32. exf4 $2 Qh3+ 33. Kg1 Nxf3#) 32... fxg3 {[%emt 0:10:43]} 33. Bxg3 {[%emt 0:00:09]} Qf5 $2 {[%emt 0:00:06] Black cannot hold the game after this.} (33... Rd8 $16) 34. Rcf1 $1 $18 {[%emt 0:00:14] Strongly threatening f4.} (34. Qd5 Rd8 35. Qxe5 Qxf3+ 36. Kg1 Rxd3 37. Qh8+ Kf7 38. Rxh7+ Nxh7 39. Qxh7+ Ke6 40. Qxd3 Qxg3+ 41. Kf1 Qf3+ 42. Ke1 Qh1+ 43. Qf1 (43. Kd2 Qg2+ 44. Kd1 Qd5 $11) 43... Qxf1+ 44. Kxf1 b3 $11) 34... Nf7 {[%emt 0:00:19] [#]} 35. e4 $1 {[%emt 0:01:36]} Qg6 {[%emt 0:01:13] [#]} 36. f4 $1 {[%emt 0:00:33][%cal Bf3f4,Bf4f5][%mdl 32]} Kg7 $2 {[%emt 0:11:42]} (36... Rd8 {was worth a try.} 37. f5 (37. fxe5 Ke8 $16) 37... Qg7) 37. f5 {[%emt 0:01:00]} Qf6 {[%emt 0:00:46]} 38. Kf2 {[%emt 0:01:13]} h6 {[%emt 0:02:04]} 39. Rfg1 {[%emt 0:00:40]} Ng5 {[%emt 0:01:16]} 40. Ke2 {[%emt 0:00:28]} ({Resist} 40. Qd5 Rd8 41. Bxe5 (41. Qxe5 c4 $18) 41... Rxd5 $18) 40... Rd8 {[%emt 0:00:33] Against Qd5} 41. Bf2 {[%emt 0:07:03] Prevents Rd4.} a5 {[%emt 0:08:48]} 42. Be3 {[%emt 0:02:18]} Qd6 {[%emt 0:00:31]} (42... Qa6 $142 43. Rc1 Rc8) 43. Rh5 {[%emt 0:02:46]} Rh8 {[%emt 0:01:38]} 44. Qc4 {[%emt 0:02:19][%cal Re3g5] Threatens to win with Bxg5.} Qd8 {[%emt 0:13:11] Black is weak on the light squares} 45. Qe6 {[%emt 0:06:16] White mates.} Bf6 {[%emt 0:03:04]} 46. Bxg5 {[%emt 0:00:21]} hxg5 {[%emt 0:00:06] [#]} 47. Rgxg5+ $3 {[%emt 0:00:57][%mdl 512] Weighted Error Value: White=0.16 (very precise) /Black=0.49.  Mistake:       	---       	Black=4      Inaccurate:     	White=1     	Black=3      OK:         	White=9     	Black=13     Best:        	White=2     	---        Strong:       	White=3     	---} 1-0